bitfinex/quotes_ETHUSD_20240716
["timestamp","ask_amount","ask_price","bid_price","bid_amount"]
[1721114905983,0.55,3402.1,3400.7,0.594073]
[1721114905984,2.93997,3401.4,3400.7,0.594073]
[1721114907239,2.93997,3401.4,3400.5,2.94069]
[1721114907447,2.93997,3401.4,3400.6,3.0]
[1721114911457,3.48941,3402.1,3400.6,3.0]
[1721114911458,2.93963,3401.8,3400.8,2.94042]
[1721114911661,2.93954,3401.9,3400.9,2.94038]
[1721114911813,2.93954,3401.9,3401.0,0.294038]
[1721114912549,2.93937,3402.1,3401.1,5.34365]
[1721114912749,2.93945,3402.0,3401.1,5.34365]
[1721114914333,2.9397,3401.8,3400.7,5.42665]
[1721114914672,2.93976,3401.7,3400.8,3.842665]
[1721114914959,2.93981,3401.6,3400.8,3.842665]
[1721114915669,2.93997,3401.4,3400.7,3.0]
[1721114915853,9.328377,3402.2,3400.3,5.299]
[1721114915854,5.26234,3401.8,3400.3,5.299]
[1721114916022,2.93988,3401.5,3400.5,2.94073]
[1721114916217,2.3227,3401.8,3400.6,3.0]
[1721114916218,2.93998,3401.4,3400.6,3.0]
[1721114916561,2.94006,3401.3,3400.6,3.0]
[1721114916746,2.93998,3401.4,3400.6,3.0]
[1721114916747,2.93998,3401.4,3400.7,0.594073]
[1721114916944,2.93981,3401.6,3400.7,0.594073]
[1721114916945,2.94005,3401.3,3400.7,0.594073]
[1721114917438,2.93981,3401.6,3400.7,0.594073]
[1721114917770,2.93989,3401.5,3400.7,0.594073]
[1721114918065,2.93998,3401.4,3400.7,0.594073]
[1721114918278,2.93998,3401.4,3400.4,3.0]
[1721114918279,2.94038,3401.0,3400.4,3.0]
[1721114918436,2.9404,3400.9,3400.3,5.299]
[1721114919472,2.94016,3401.2,3400.3,5.299]
[1721114919776,2.94016,3401.2,3400.4,0.9060043]
[1721114919917,2.94016,3401.2,3400.4,3.9060043]
[1721114920860,6.273377,3401.5,3400.4,3.9060043]
[1721114921085,6.273377,3401.5,3400.7,2.94056]
[1721114921370,6.273377,3401.5,3400.4,3.9060043]
[1721114921371,2.93997,3401.4,3400.6,2.94064]
[1721114921520,6.273377,3401.5,3400.4,3.9060043]
[1721114921521,6.273377,3401.5,3400.7,3.68466443]
[1721114921717,6.273377,3401.5,3400.7,0.68466443]
[1721114922238,6.273377,3401.5,3400.6,3.0]
[1721114922239,9.213257,3401.5,3400.6,3.0]
[1721114922449,9.213257,3401.5,3400.5,3.0]
[1721114922768,2.93998,3401.4,3400.5,3.0]
[1721114923058,2.93998,3401.4,3400.4,3.9060043]
[1721114923920,2.94022,3401.1,3400.4,3.9060043]
[1721114924276,2.94022,3401.1,3400.5,0.99658773]
[1721114924820,2.93998,3401.4,3400.5,0.99658773]
[1721114926262,2.94019,3401.2,3400.5,0.99658773]
[1721114928416,0.60623929,3401.4,3400.5,0.99658773]
[1721114928581,6.273377,3401.5,3400.7,2.94056]
[1721114928912,9.213267,3401.5,3400.6,3.86428977]
[1721114929242,9.81950629,3401.5,3400.7,3.0]
[1721114929363,9.81950629,3401.5,3400.7,3.98642898]
[1721114929865,3.54612929,3401.5,3400.7,3.98642898]
[1721114930203,3.54612929,3401.5,3400.7,3.0]
[1721114930368,0.60623929,3401.4,3400.6,0.92363977]
[1721114931007,3.54612929,3401.5,3400.6,0.92363977]
[1721114931357,2.94011,3401.3,3400.6,0.92363977]
[1721114931975,0.60623929,3401.4,3400.6,3.86427977]
[1721114932177,0.60623929,3401.4,3400.7,3.98050698]
[1721114932381,0.60623929,3401.3,3400.7,3.98050698]
[1721114933401,0.60623929,3401.2,3400.7,3.98050698]
[1721114934507,0.60623929,3401.1,3400.7,3.98050698]
[1721114934803,0.90935894,3401.2,3400.7,0.98050698]
[1721114934804,0.60623929,3401.0,3400.7,0.98050698]
[1721114935603,0.60623929,3401.0,3400.8,0.6921207]
[1721114935994,0.60623929,3401.0,3400.5,3.0]
[1721114936199,0.60623929,3400.9,3400.3,8.23989]
[1721114936575,0.60623929,3400.8,3400.3,8.23989]
[1721114937180,0.60840241,3400.8,3400.3,8.23989]
[1721114938388,0.60840241,3400.9,3400.3,8.23989]
[1721114938619,0.60840241,3400.8,3400.4,4.1409133]
[1721114938919,4.15694482,3401.2,3400.5,3.0]
[1721114938920,0.60840241,3400.9,3400.5,3.0]
[1721114939223,0.91260362,3401.1,3400.6,2.94063]
[1721114939224,0.60840241,3401.1,3400.6,2.94063]
[1721114939377,0.60840241,3401.1,3400.7,3.0]
[1721114939578,0.60840241,3401.0,3400.8,0.894063]
[1721114940209,0.91260362,3401.1,3400.8,0.894063]
[1721114940210,0.60840241,3400.9,3400.8,0.894063]
[1721114940424,0.60840241,3400.9,3400.6,3.0]
[1721114940709,0.60840241,3400.9,3400.4,4.2000933]
[1721114941279,0.60840241,3401.0,3400.4,4.2000933]
[1721114941473,0.60840241,3401.0,3400.4,7.1409133]
[1721114941678,0.60840241,3400.9,3400.4,7.1409133]
[1721114941903,0.60840241,3400.9,3400.5,0.94399133]
[1721114942615,2.94014,3401.2,3400.5,0.94399133]
[1721114942822,0.60842617,3400.9,3400.5,0.94399133]
[1721114943921,0.60842617,3400.9,3400.5,3.88472133]
[1721114944119,0.60842617,3400.9,3400.6,4.21246113]
[1721114944546,0.60842617,3400.9,3400.6,7.15308113]
[1721114945048,0.60842617,3400.9,3400.6,4.21246113]
[1721114945256,0.60842617,3400.9,3400.7,2.94052]
[1721114945457,0.60842617,3401.1,3400.9,2.94039]
[1721114945753,0.91263926,3401.3,3400.9,2.94039]
[1721114945754,0.60842617,3401.2,3400.9,2.94039]
[1721114945921,0.60842617,3401.2,3401.0,2.9403]
[1721114946126,0.60842617,3401.2,3400.8,3.65572811]
[1721114946322,0.60842617,3401.1,3400.6,3.0]
[1721114946528,0.91263926,3401.3,3400.3,2.299]
[1721114946529,0.60842617,3401.0,3400.3,2.299]
[1721114946913,0.60842617,3400.9,3400.3,2.299]
[1721114947113,0.60842617,3401.0,3400.3,2.299]
[1721114947312,0.60842617,3401.0,3400.6,2.94064]
[1721114947521,0.60842617,3401.0,3400.7,3.0]
[1721114947749,1.54861749,3401.3,3400.9,2.94039]
[1721114947750,0.60842617,3401.1,3400.9,2.94039]
[1721114947955,0.60842617,3401.2,3400.9,2.94039]
[1721114948188,0.60842617,3401.2,3401.0,5.20486]
[1721114948458,0.60842617,3401.2,3401.0,6.319385]
[1721114948753,0.60842617,3401.2,3401.1,2.94022]
[1721114949058,1.21778756,3401.7,3401.5,2.93987]
[1721114949225,0.33173314,3401.6,3401.5,2.93987]
[1721114950214,0.60870454,3401.6,3401.5,2.93987]
[1721114950414,0.60870454,3401.7,3401.5,3.52786]
[1721114950611,7.18639199,3401.8,3401.6,2.93977]
[1721114950612,6.88208154,3401.8,3401.6,2.93977]
[1721114950815,0.91301499,3402.0,3401.5,0.58799]
[1721114950816,0.60870454,3402.0,3401.8,2.93962]
[1721114951115,0.60870454,3402.1,3402.0,2.93944]
[1721114951316,0.60870454,3402.3,3402.0,2.93944]
[1721114951966,0.60838146,3402.3,3402.0,2.93944]
[1721114952121,0.60838146,3402.2,3402.0,2.93944]
[1721114952316,0.60838146,3402.2,3401.7,5.3478]
[1721114952317,0.60838146,3402.1,3401.7,3.0]
[1721114952519,0.60838146,3402.0,3401.6,3.0]
[1721114953017,0.9125722,3402.1,3401.6,6.533767]
[1721114953018,0.60838146,3401.9,3401.6,6.533767]
[1721114953220,0.60838146,3402.0,3401.6,6.533767]
[1721114954955,0.60838146,3402.0,3401.6,3.0]
[1721114955266,0.60838146,3401.8,3401.5,3.0]
[1721114955445,0.60838146,3401.7,3401.3,5.94004]
[1721114955644,0.60838146,3401.7,3401.3,6.828064]
[1721114956657,0.60838146,3401.7,3400.6,0.818045]
[1721114956658,0.60838146,3401.6,3400.6,0.818045]
[1721114956825,0.60838146,3401.6,3400.3,2.3995]
[1721114956826,3.54843146,3401.3,3400.3,2.3995]
[1721114957030,0.60838146,3401.1,3400.4,2.94074]
[1721114957337,0.60838146,3401.0,3400.4,2.94074]
[1721114957538,0.60838146,3401.0,3400.6,2.94063]
[1721114957771,0.60838146,3401.1,3400.6,2.94063]
[1721114957976,0.60838146,3401.1,3400.7,3.0]
[1721114958266,0.60811277,3401.1,3400.7,3.0]
[1721114959068,0.60811277,3401.3,3400.9,2.94037]
[1721114959292,0.60811277,3401.3,3400.9,3.828465]
[1721114959434,0.91216916,3401.5,3400.9,3.828465]
[1721114959435,0.60811277,3401.5,3400.9,3.828465]
[1721114960136,0.60811277,3401.4,3400.9,3.828465]
[1721114960347,0.60811277,3401.4,3401.0,0.9769025]
[1721114960743,0.91216916,3401.5,3401.2,2.94007]
[1721114960744,0.60811277,3401.5,3401.2,2.94007]
[1721114961075,0.60811277,3401.5,3401.1,2.2677]
[1721114961076,0.60811277,3401.7,3401.1,2.2677]
[1721114961285,0.60811277,3401.6,3401.1,8.20792]
[1721114961575,6.88148977,3401.8,3401.2,2.94013]
[1721114961756,0.60811277,3401.7,3401.2,2.94013]
[1721114962467,6.88148977,3401.8,3401.3,3.0]
[1721114962679,0.60811277,3401.9,3401.3,5.94003]
[1721114963173,7.48960254,3402.2,3401.4,2.93996]
[1721114963174,0.60811277,3402.0,3401.4,2.93996]
[1721114963393,0.60811277,3402.1,3401.5,5.93987]
[1721114963598,0.60811277,3402.1,3401.4,2.93996]
[1721114963804,7.18554616,3402.2,3401.7,2.9397]
[1721114963805,6.88148977,3402.2,3401.7,2.9397]
[1721114964119,0.60811277,3402.2,3401.9,2.93945]
[1721114964300,0.91216916,3402.4,3401.9,5.27865]
[1721114964301,0.6083588,3402.4,3401.9,5.27865]
[1721114964605,13.2125382,3402.6,3401.9,5.27865]
[1721114964606,0.6083588,3402.5,3402.1,2.93935]
[1721114964773,6.273377,3402.7,3402.2,3.0]
[1721114964970,6.273377,3402.7,3402.2,4.421797]
[1721114965493,6.273377,3402.7,3402.3,3.0]
[1721114967018,6.273377,3402.7,3402.3,5.93917]
[1721114967588,6.273377,3402.7,3402.5,2.93898]
[1721114967786,13.5167176,3403.4,3402.5,2.93897]
[1721114967787,6.273377,3403.2,3402.5,2.93897]
[1721114967969,0.9125382,3403.5,3402.5,2.93897]
[1721114967970,6.8817358,3403.5,3402.8,2.93873]
[1721114968169,0.6083588,3403.4,3402.8,2.93873]
[1721114968496,6.273377,3403.5,3402.8,2.93873]
[1721114968695,6.273377,3403.5,3402.9,3.0]
[1721114969197,6.273377,3403.5,3403.1,2.93847]
[1721114969386,6.273377,3403.5,3403.1,3.82619]
[1721114969575,12.3,3403.9,3403.3,2.93828]
[1721114969778,6.8817358,3404.0,3403.3,2.93828]
[1721114970365,6.273377,3404.0,3403.3,2.93828]
[1721114970905,6.273377,3404.0,3403.4,2.93823]
[1721114971106,6.273377,3404.0,3403.5,0.831143]
[1721114971277,6.273377,3404.0,3403.6,2.93803]
[1721114971484,6.273377,3404.0,3403.7,3.0]
[1721114971681,6.273377,3404.0,3403.9,2.9378]
[1721114971881,6.273377,3404.0,3403.9,3.0]
[1721114972101,6.273377,3404.0,3403.9,5.9378]
[1721114972306,6.273377,3404.0,3403.9,6.825386]
[1721114972830,6.273377,3404.0,3403.9,3.0]
[1721114973036,6.273377,3404.0,3403.6,2.93802]
[1721114973187,6.273377,3404.0,3403.7,5.93796]
[1721114973927,6.273377,3404.0,3403.8,2.93782]
[1721114974080,6.273377,3404.0,3403.9,5.9378]
[1721114974278,12.3,3404.6,3404.2,2.93749]
[1721114974279,6.273377,3404.6,3404.2,2.93749]
[1721114974542,18.573377,3405.1,3404.2,2.93749]
[1721114975599,21.510157,3405.1,3404.0,2.93764]
[1721114975808,21.510157,3405.1,3404.1,2.93757]
[1721114976195,21.510157,3405.1,3404.2,2.93754]
[1721114976395,21.510157,3405.1,3404.2,3.825058]
[1721114976735,21.510157,3405.1,3404.2,3.825048]
[1721114976904,18.573377,3405.1,3404.3,3.0]
[1721114977093,18.573377,3405.1,3403.6,2.938]
[1721114977094,2.93705,3404.8,3404.0,3.0]
[1721114977296,2.93705,3404.8,3403.9,3.0]
[1721114978327,2.93712,3404.7,3403.9,3.0]
[1721114978530,2.93712,3404.7,3403.7,3.0]
[1721114978706,2.93712,3404.7,3403.8,0.9824143]
[1721114979328,2.93712,3404.7,3403.8,3.9202343]
[1721114979576,2.93712,3404.7,3403.9,3.0]
[1721114980033,2.93694,3405.0,3403.9,3.0]
[1721114980034,9.210157,3405.1,3403.9,5.93778]
[1721114980235,6.273377,3405.1,3403.9,5.93778]
[1721114980531,9.210177,3405.1,3404.1,2.93761]
[1721114980734,9.210177,3405.1,3404.2,3.0]
[1721114981843,6.273377,3405.1,3404.2,5.93753]
[1721114982210,6.273377,3405.1,3404.3,2.93745]
[1721114982417,6.273377,3405.1,3404.4,6.758475]
[1721114983299,21.509897,3405.4,3404.4,6.758475]
[1721114983625,2.9366,3405.3,3404.4,6.758475]
[1721114984431,2.9366,3405.3,3404.4,3.821125]
[1721114984595,2.93686,3405.0,3404.2,3.0]
[1721114984798,2.93686,3405.0,3404.1,5.2738]
[1721114984995,2.93686,3405.0,3404.1,5.93763]
[1721114985440,2.93686,3405.0,3404.1,3.0]
[1721114985738,2.93686,3405.0,3404.1,0.46744337]
[1721114985955,2.9371,3404.8,3404.1,0.46744337]
[1721114986437,2.93712,3404.7,3404.1,0.46744337]
[1721114987360,2.93712,3404.7,3403.8,6.9202143]
[1721114987361,2.4924,3405.1,3403.8,0.9824143]
[1721114987540,9.328377,3405.4,3402.8,3.1]
[1721114987541,8.764477,3404.9,3402.8,2.2696]
[1721114987719,8.764477,3404.9,3403.0,2.93856]
[1721114987720,2.93781,3403.9,3403.0,2.93856]
[1721114988146,9.211007,3404.1,3403.0,2.93856]
[1721114988147,2.9379,3403.8,3403.0,2.93856]
[1721114988357,2.9379,3403.8,3403.1,0.520816]
[1721114989229,2.93773,3404.0,3403.1,0.520816]
[1721114989431,11.702117,3404.1,3403.1,0.520816]
[1721114989631,2.9379,3403.8,3403.1,0.520816]
[1721114989836,2.9379,3403.8,3403.2,0.3520816]
[1721114990041,2.9379,3403.8,3403.1,0.520816]
[1721114990376,8.764477,3404.1,3402.8,2.2696]
[1721114990672,2.93825,3403.4,3402.4,2.93904]
[1721114991020,2.93825,3403.4,3402.5,2.93901]
[1721114991215,2.93834,3403.3,3402.3,2.2889]
[1721114991464,2.93859,3403.0,3401.9,2.93946]
[1721114991632,2.93859,3403.0,3402.0,2.93944]
[1721114992177,2.93859,3403.0,3401.8,2.2889]
[1721114992456,2.93885,3402.7,3401.8,2.2889]
[1721114992963,2.93885,3402.7,3401.8,5.22851]
[1721114993168,2.93885,3402.7,3401.9,0.522851]
[1721114993761,2.93885,3402.7,3401.9,3.522851]
[1721114993956,2.93893,3402.6,3401.3,5.25827]
[1721114994133,2.93922,3402.3,3401.3,2.3183]
[1721114995126,2.93922,3402.3,3401.3,5.25828]
[1721114995356,2.93922,3402.3,3401.4,0.819841]
[1721114995558,2.93939,3402.1,3401.4,0.819841]
[1721114995734,2.93939,3402.1,3401.4,3.819841]
[1721114996126,2.9391,3402.5,3401.4,3.819841]
[1721114996550,6.273377,3402.6,3401.4,3.819841]
[1721114996551,2.93913,3402.4,3401.4,3.819841]
[1721114996752,2.93934,3402.2,3401.4,3.819841]
[1721114996937,2.93934,3402.2,3401.5,0.9078261]
[1721114997133,2.9395,3402.0,3401.4,3.0]
[1721114997443,2.93934,3402.2,3401.2,2.94008]
[1721114997643,2.93934,3402.2,3401.3,3.0]
[1721114999021,2.93934,3402.2,3401.3,5.94004]
[1721114999326,9.212317,3402.6,3401.5,2.93985]
[1721114999526,12.151327,3402.6,3401.6,6.533725]
[1721114999731,9.212317,3402.6,3401.6,5.93974]
[1721115000141,2.93901,3402.5,3401.6,3.0]
[1721115000339,2.93901,3402.5,3400.6,2.94064]
[1721115000340,2.93955,3401.9,3400.6,2.94064]
[1721115000539,2.93955,3401.9,3400.7,0.599564]
[1721115000540,2.93986,3401.6,3400.7,0.599564]
[1721115000731,2.93986,3401.6,3400.7,3.540134]
[1721115000932,2.93986,3401.6,3400.7,0.599564]
[1721115001416,2.93997,3401.4,3400.7,0.599564]
[1721115001541,2.94005,3401.3,3400.4,2.9408]
[1721115002636,2.94014,3401.2,3400.2,2.3724]
[1721115002874,2.94024,3401.1,3400.2,2.3724]
[1721115003069,2.94024,3401.1,3400.2,5.31338]
[1721115003288,6.273377,3401.3,3400.3,2.94088]
[1721115003465,6.273377,3401.3,3400.4,0.531328]
[1721115003662,2.94021,3401.2,3400.4,0.531328]
[1721115004173,2.94021,3401.2,3400.3,5.94091]
[1721115007585,2.94021,3401.2,3399.1,2.3529]
[1721115007586,2.94094,3400.3,3399.1,2.3529]
[1721115007881,2.94094,3400.3,3399.1,5.29477]
[1721115007882,2.94111,3400.1,3399.1,5.29477]
[1721115008054,11.467017,3400.3,3399.1,2.3529]
[1721115008055,2.94119,3400.0,3399.1,2.3529]
[1721115008254,2.94127,3399.9,3399.1,2.58819]
[1721115008578,2.94135,3399.8,3399.1,0.23529]
[1721115008777,2.94144,3399.7,3398.7,2.3041]
[1721115008938,2.94135,3399.8,3398.7,2.3041]
[1721115008939,2.94154,3399.6,3398.7,2.3041]
[1721115009390,2.94154,3399.6,3398.6,2.94237]
[1721115009541,2.94154,3399.6,3398.7,2.94229]
[1721115009750,6.273377,3399.8,3398.7,2.94229]
[1721115009959,6.273377,3399.8,3398.8,0.588466]
[1721115010163,6.273377,3399.8,3399.1,2.94195]
[1721115010368,6.273377,3399.8,3399.3,2.94169]
[1721115010662,6.273377,3399.8,3399.7,2.495]
[1721115010861,6.273377,3400.4,3399.6,3.0]
[1721115011275,2.94152,3399.7,3398.6,2.495]
[1721115011485,6.273377,3399.8,3398.7,0.543756]
[1721115011658,6.273377,3399.8,3398.7,3.543756]
[1721115012289,6.273377,3399.8,3399.1,2.94186]
[1721115012462,6.273377,3399.8,3399.2,3.0]
[1721115012665,6.273377,3399.8,3399.0,3.0]
[1721115012876,6.273377,3399.8,3399.0,3.9428056]
[1721115013057,6.273377,3399.8,3399.0,6.8848356]
[1721115013258,6.273377,3399.8,3399.0,3.9428056]
[1721115013585,6.273377,3399.8,3399.1,3.0]
[1721115013744,6.273377,3399.8,3399.0,0.9428056]
[1721115013942,6.273377,3399.8,3399.1,0.68849056]
[1721115014357,6.273377,3399.8,3399.1,3.68849056]
[1721115014982,6.273377,3399.8,3399.1,3.0]
[1721115015186,2.94171,3399.4,3398.2,2.9427]
[1721115015842,2.94146,3399.7,3398.7,2.94227]
[1721115016046,2.94162,3399.5,3398.3,2.94256]
[1721115016246,2.94162,3399.5,3398.5,2.94245]
[1721115016482,2.94162,3399.5,3398.6,3.588501]
[1721115016687,2.9417,3399.4,3398.6,3.588501]
[1721115017072,2.94154,3399.6,3398.6,3.588501]
[1721115017284,9.214737,3399.8,3398.8,2.94218]
[1721115017593,9.214737,3399.8,3398.9,3.0]
[1721115017762,9.214737,3399.8,3399.0,0.594218]
[1721115017962,6.273377,3399.8,3399.0,0.594218]
[1721115018176,6.273377,3399.8,3399.4,2.94165]
[1721115018381,6.273377,3400.2,3399.4,2.94165]
[1721115018593,6.273377,3400.2,3399.5,2.94159]
[1721115018788,6.273377,3400.2,3399.6,0.588329]
[1721115019296,6.273377,3400.2,3399.6,3.588329]
[1721115019450,6.273377,3400.2,3399.6,6.529839]
[1721115019882,6.273377,3400.2,3399.6,3.588329]
[1721115020810,6.273377,3400.2,3399.4,3.0]
[1721115021010,6.273377,3400.2,3399.2,3.0]
[1721115021011,2.9412,3400.0,3399.2,3.0]
[1721115021211,2.9412,3400.0,3399.0,0.594218]
[1721115021212,2.94144,3399.7,3399.0,0.594218]
[1721115021394,2.94144,3399.7,3398.7,2.94223]
[1721115022378,2.94144,3399.7,3398.8,2.94219]
[1721115023438,6.273377,3399.8,3398.9,2.94211]
[1721115023724,6.273377,3399.8,3398.9,5.94212]
[1721115023895,6.273377,3399.8,3399.2,2.9418]
[1721115024221,6.273377,3399.8,3399.3,3.23594]
[1721115025150,6.273377,3400.2,3399.3,3.23594]
[1721115025845,6.273377,3400.2,3399.4,2.94168]
[1721115026007,6.273377,3400.2,3399.6,2.94151]
[1721115026209,6.273377,3400.5,3399.7,3.0]
[1721115026438,6.273377,3400.5,3399.8,0.3]
[1721115026825,6.273377,3400.5,3399.7,2.94142]
[1721115027031,6.273377,3400.5,3399.8,3.0]
[1721115027356,6.273377,3400.5,3399.9,2.94124]
[1721115027836,6.273377,3400.5,3399.8,3.0]
[1721115027837,6.273377,3400.5,3400.0,2.94117]
[1721115028149,6.273377,3400.5,3400.1,5.94108]
[1721115028310,6.273377,3400.9,3400.2,3.829223]
[1721115028819,6.273377,3400.9,3400.3,5.9409]
[1721115029015,6.273377,3400.9,3400.4,5.94081]
[1721115029244,6.273377,3400.9,3400.6,2.94062]
[1721115029548,6.273377,3400.9,3400.7,3.0]
[1721115030047,6.273377,3400.9,3399.4,2.3083]
[1721115030208,6.273377,3400.9,3399.7,2.94142]
[1721115030209,9.213837,3400.9,3399.7,2.94142]
[1721115030410,9.213837,3400.9,3399.8,5.94131]
[1721115030648,2.941,3400.2,3398.9,2.3083]
[1721115030854,2.941,3400.2,3399.0,2.94202]
[1721115031142,2.941,3400.2,3399.3,2.94169]
[1721115031349,2.941,3400.2,3399.4,2.94168]
[1721115032438,6.273377,3400.4,3399.7,2.94143]
[1721115032635,6.273377,3400.4,3399.5,3.0]
[1721115032636,6.273377,3400.4,3399.8,2.94132]
[1721115032834,6.273377,3400.4,3400.1,2.94108]
[1721115033083,6.273377,3400.9,3400.0,2.94115]
[1721115033374,6.273377,3400.9,3399.9,0.294132]
[1721115033541,6.273377,3400.9,3399.9,3.294132]
[1721115033729,6.273377,3400.9,3400.1,2.94108]
[1721115033926,6.273377,3400.9,3400.2,3.9176452]
[1721115034680,6.273377,3400.9,3400.2,6.8586452]
[1721115034887,6.273377,3400.9,3400.2,3.0]
[1721115035042,2.94049,3400.8,3399.9,0.294132]
[1721115035241,2.94049,3400.8,3399.9,3.294132]
[1721115035472,2.94049,3400.8,3400.0,2.94116]
[1721115035736,2.94049,3400.8,3399.8,3.0]
[1721115035737,2.94049,3400.8,3400.1,3.0]
[1721115035943,6.273377,3400.9,3400.1,0.6]
[1721115036167,6.273377,3400.9,3400.1,6.54108]
[1721115036846,9.213787,3400.9,3400.1,6.54108]
[1721115037048,9.213787,3400.9,3400.1,3.0]
[1721115037298,6.273377,3400.9,3400.1,2.94108]
[1721115037578,6.273377,3400.9,3400.2,3.0]
[1721115038073,6.273377,3400.9,3400.2,5.94098]
[1721115038841,6.273377,3400.9,3400.2,3.0]
[1721115039208,6.273377,3400.9,3399.9,2.364]
[1721115039209,6.273377,3400.9,3400.3,0.3]
[1721115039340,6.273377,3400.9,3400.8,2.94048]
[1721115039545,6.273377,3401.5,3400.6,2.94058]
[1721115039767,6.273377,3401.5,3400.7,2.94055]
[1721115039972,6.273377,3401.5,3400.9,2.94038]
[1721115040197,6.273377,3401.5,3400.9,2.94033]
[1721115041072,6.273377,3401.5,3400.9,3.528418]
[1721115041273,6.273377,3401.5,3400.9,0.588088]
[1721115041498,12.3,3401.8,3400.8,3.0]
[1721115041499,18.573377,3401.8,3400.8,3.0]
[1721115041699,18.573377,3401.8,3400.7,2.3899]
[1721115041700,6.273377,3401.8,3401.1,2.94017]
[1721115041900,6.273377,3401.8,3400.7,2.3899]
[1721115041901,6.273377,3401.8,3400.9,2.94038]
[1721115042274,9.213057,3401.8,3400.7,2.94056]
[1721115042480,9.213057,3401.8,3400.8,3.0]
[1721115042481,2.4203,3401.7,3400.8,3.0]
[1721115042776,2.4203,3401.7,3400.8,3.88813]
[1721115043097,2.4203,3401.7,3400.9,2.94038]
[1721115045311,2.4203,3401.7,3400.8,3.88813]
[1721115045499,3.0305433,3401.7,3400.9,2.94035]
[1721115045704,2.4203,3401.7,3400.9,3.623198]
[1721115046088,6.273377,3401.8,3400.9,0.682848]
[1721115046293,6.273377,3401.8,3401.1,2.94022]
[1721115047492,6.273377,3401.8,3401.2,2.94012]
[1721115047692,6.273377,3401.8,3401.4,2.93996]
[1721115047888,6.273377,3401.8,3401.5,0.588008]
[1721115048210,2.3711,3402.2,3401.5,0.588008]
[1721115048579,21.512577,3402.3,3401.9,2.93949]
[1721115048580,6.273377,3402.3,3401.9,2.93949]
[1721115048789,0.91536496,3402.7,3401.1,2.3159]
[1721115048790,6.273377,3402.7,3402.3,2.93917]
[1721115049010,0.6102433,3403.1,3402.3,2.93917]
[1721115049011,6.273377,3403.1,3402.3,2.93917]
[1721115049209,7.49126003,3403.1,3402.2,2.93926]
[1721115049413,7.49126003,3403.1,3402.3,5.93917]
[1721115051178,6.273377,3403.1,3402.3,5.93917]
[1721115051993,9.211887,3403.1,3402.3,5.93917]
[1721115052718,9.211887,3403.1,3402.3,3.0]
[1721115053021,2.93859,3403.0,3402.1,5.93934]
[1721115053203,2.93859,3403.0,3402.2,2.93925]
[1721115053532,6.273377,3403.1,3402.3,3.0]
[1721115054027,6.273377,3403.1,3401.6,2.2833]
[1721115054028,2.93885,3402.7,3401.6,5.22302]
[1721115054194,2.93885,3402.7,3401.5,2.93987]
[1721115054584,2.93885,3402.7,3401.8,2.93961]
[1721115054793,2.93885,3402.7,3401.9,3.0]
[1721115054996,2.93885,3402.7,3401.9,3.893961]
[1721115055196,2.93885,3402.7,3401.8,2.93961]
[1721115055512,2.93885,3402.7,3401.9,3.0]
[1721115055948,2.93896,3402.6,3401.6,2.93974]
[1721115056100,2.4169,3402.5,3401.7,3.0]
[1721115056298,2.4169,3402.5,3401.2,2.2833]
[1721115056299,2.9389,3402.7,3401.8,2.9396]
[1721115056529,2.9389,3402.7,3401.8,3.827537]
[1721115056734,2.93894,3402.6,3401.8,0.887937]
[1721115057303,2.93894,3402.6,3401.8,3.0]
[1721115057509,2.93908,3402.5,3401.8,3.0]
[1721115057729,2.93894,3402.6,3401.6,3.0]
[1721115057909,2.93894,3402.6,3401.7,2.93962]
[1721115058120,2.93894,3402.6,3401.5,2.93986]
[1721115058317,2.93894,3402.6,3401.6,3.58799]
[1721115058524,2.93894,3402.6,3401.6,6.52773]
[1721115059231,2.93924,3402.3,3401.6,3.58799]
[1721115059430,2.93924,3402.3,3401.6,0.58799]
[1721115059663,6.273377,3402.7,3401.7,2.9397]
[1721115059817,2.93903,3402.5,3401.8,3.0]
[1721115060520,2.93894,3402.6,3401.8,3.0]
[1721115060907,2.93923,3402.3,3401.8,3.0]
[1721115061134,2.93923,3402.3,3401.5,3.0]
[1721115061318,2.93927,3402.2,3401.2,2.94005]
[1721115061516,2.4988,3402.1,3401.3,0.588025]
[1721115061756,2.4988,3402.1,3399.8,4.066]
[1721115062052,2.4988,3402.1,3399.6,2.4075]
[1721115062053,2.94032,3401.0,3400.2,2.94097]
[1721115062749,2.3216,3401.1,3399.3,2.94175]
[1721115062910,2.3216,3401.1,3399.1,2.3796]
[1721115062911,2.9409,3400.4,3399.4,2.94169]
[1721115063242,2.94066,3400.6,3399.1,2.3796]
[1721115063243,2.94099,3400.3,3399.1,5.32155]
[1721115063406,2.9411,3400.1,3399.2,3.768197]
[1721115063610,2.94102,3400.2,3399.3,2.94178]
[1721115064221,2.9411,3400.1,3399.2,0.826367]
[1721115064437,5.88226,3400.1,3399.2,0.826367]
[1721115064861,2.9411,3400.1,3399.2,3.768217]
[1721115065071,2.94067,3400.6,3399.5,2.9416]
[1721115065249,2.94067,3400.6,3399.5,5.88314]
[1721115065463,2.94067,3400.6,3399.6,2.94151]
[1721115066052,2.94075,3400.5,3399.6,2.94151]
[1721115066259,2.94075,3400.5,3399.4,2.94165]
[1721115066463,0.294075,3400.4,3399.4,2.94165]
[1721115066835,2.94109,3400.1,3399.2,0.826367]
[1721115067035,0.294075,3400.4,3398.6,2.94231]
[1721115067036,2.94127,3399.9,3398.6,2.94231]
[1721115067342,9.214647,3399.9,3398.6,2.94231]